fUSD/lending_fUSD_20260523
["ID","MTS","AMOUNT","RATE_DAILY","PERIOD"]
[422842146,1779510640000,-459.57861787,8.781e-05,2]
[422842149,1779510640000,-342.73000121,8.781e-05,2]
[422842148,1779510640000,-500.0,8.781e-05,2]
[422842147,1779510640000,-40.42138213,8.781e-05,2]
[422842144,1779510640000,-500.0,8.781e-05,2]
[422842145,1779510640000,-500.0,8.781e-05,2]
[422842159,1779510640000,-500.0,8.781e-05,2]
[422842141,1779510640000,-500.0,8.781e-05,2]
[422842143,1779510640000,-500.0,8.781e-05,2]
[422842142,1779510640000,-500.0,8.781e-05,2]
[422842140,1779510640000,-500.0,8.781e-05,2]
[422842139,1779510640000,-338.51252113,8.781e-05,2]
[422842138,1779510640000,-161.48747887,8.781e-05,2]
[422842150,1779510640000,-157.26999879,8.781e-05,2]
[422842164,1779510640000,-500.0,8.781e-05,2]
[422842137,1779510640000,-88.51252113,8.781e-05,2]
[422842166,1779510640000,-500.0,8.781e-05,2]
[422842192,1779510640000,-768.0,8.782e-05,2]
[422842186,1779510640000,-500.0,8.781e-05,2]
[422842185,1779510640000,-500.0,8.781e-05,2]
[422842189,1779510640000,-500.0,8.781e-05,2]
[422842188,1779510640000,-500.0,8.781e-05,2]
[422842190,1779510640000,-500.0,8.781e-05,2]
[422842183,1779510640000,-500.0,8.781e-05,2]
[422842184,1779510640000,-500.0,8.781e-05,2]
[422842182,1779510640000,-636.94018906,8.781e-05,2]
[422842187,1779510640000,-500.0,8.781e-05,2]
[422842191,1779510640000,-18404.4584815,8.782e-05,2]
[422842181,1779510640000,-500.0,8.781e-05,2]
[422842180,1779510640000,-500.0,8.781e-05,2]
[422842174,1779510640000,-500.0,8.781e-05,2]
[422842168,1779510640000,-500.0,8.781e-05,2]
[422842167,1779510640000,-500.0,8.781e-05,2]
[422842179,1779510640000,-500.0,8.781e-05,2]
[422842169,1779510640000,-500.0,8.781e-05,2]
[422842170,1779510640000,-500.0,8.781e-05,2]
[422842173,1779510640000,-500.0,8.781e-05,2]
[422842172,1779510640000,-500.0,8.781e-05,2]
[422842178,1779510640000,-500.0,8.781e-05,2]
[422842177,1779510640000,-500.0,8.781e-05,2]
[422842171,1779510640000,-500.0,8.781e-05,2]
[422842175,1779510640000,-500.0,8.781e-05,2]
[422842176,1779510640000,-500.0,8.781e-05,2]
[422842165,1779510640000,-500.0,8.781e-05,2]
[422842203,1779510643000,-425.15282304,8.782e-05,2]
[422842202,1779510643000,-420.05544144,8.782e-05,2]
[422842201,1779510643000,-581.85706092,8.782e-05,2]
[422842226,1779510646000,-647.46,8.782e-05,2]
[422842227,1779510646000,-5340.65752591,8.782e-05,2]
[422842292,1779510715000,216.32505331,0.000105,3]
[422842295,1779511086000,174.09,5.391e-05,2]
[422842299,1779511155000,152.0,9.031e-05,7]
[422842298,1779511155000,152.0,9.425e-05,8]
[422842297,1779511155000,152.0,9.819e-05,9]
[422842296,1779511155000,152.0,0.00010213,10]
[422842302,1779511156000,152.0,7.85e-05,4]
[422842301,1779511156000,152.0,8.244e-05,5]
[422842300,1779511156000,152.0,8.638e-05,6]
[422842303,1779511157000,152.0,7.456e-05,3]
[422842305,1779511740000,1000.0,0.0002808,120]
[422842332,1779511812000,169.05,4.185e-05,2]
[422842340,1779511832000,-161.55902973,8.579e-05,2]
[422842336,1779511832000,-300.0,8.578e-05,2]
[422842335,1779511832000,-169.05,8.37e-05,2]
[422842337,1779511832000,-323.95,8.578e-05,2]
[422842339,1779511832000,-250.0,8.579e-05,2]
[422842342,1779511832000,-300.0,8.579e-05,2]
[422842338,1779511832000,-876.05,8.578e-05,2]
[422842344,1779511832000,-8470.235,8.58e-05,2]
[422842348,1779511832000,-647.02968941,8.58e-05,2]
[422842347,1779511832000,-336.75759746,8.58e-05,2]
[422842346,1779511832000,-823.641,8.58e-05,2]
[422842349,1779511832000,-225722.51891472,8.58e-05,2]
[422842343,1779511832000,-300.0,8.579e-05,2]
[422842341,1779511832000,-300.0,8.579e-05,2]
[422842345,1779511832000,-692.57171313,8.58e-05,2]
[422842374,1779511834000,152.0,9.03e-05,7]
[422842375,1779511835000,152.0,9.03e-05,7]
[422842384,1779511838000,-500.0,8.579e-05,2]
[422842382,1779511838000,-150.12342306,8.579e-05,2]
[422842380,1779511838000,-500.0,8.579e-05,2]
[422842378,1779511838000,-359.0921644,8.579e-05,2]
[422842379,1779511838000,-500.0,8.579e-05,2]
[422842377,1779511838000,-269.73307328,8.579e-05,2]
[422842381,1779511838000,-500.0,8.579e-05,2]
[422842383,1779511838000,-500.0,8.579e-05,2]
[422842376,1779511838000,-500.0,8.579e-05,2]
[422842386,1779511838000,-500.0,8.579e-05,2]
[422842385,1779511838000,-500.0,8.579e-05,2]
[422842394,1779511838000,-406.20059012,8.579e-05,2]
[422842389,1779511838000,-500.0,8.579e-05,2]
[422842392,1779511838000,-500.0,8.579e-05,2]
[422842387,1779511838000,-500.0,8.579e-05,2]
[422842393,1779511838000,-272.14658305,8.579e-05,2]
[422842391,1779511838000,-500.0,8.579e-05,2]
[422842390,1779511838000,-500.0,8.579e-05,2]
[422842388,1779511838000,-500.0,8.579e-05,2]
[422842960,1779511843000,-421.73620612,8.579e-05,2]
[422842959,1779511843000,-11.05059012,8.579e-05,2]
[422842957,1779511843000,-93.79940988,8.579e-05,2]
[422842958,1779511843000,-500.0,8.579e-05,2]
[422843004,1779511846000,-500.0,8.579e-05,2]
[422843003,1779511846000,-67.21320376,8.579e-05,2]
[422843006,1779511846000,-500.0,8.579e-05,2]
[422843005,1779511846000,-500.0,8.579e-05,2]
[422843010,1779511846000,-488.15404251,8.579e-05,2]
[422843012,1779511846000,-341.20405251,8.579e-05,2]
[422843007,1779511846000,-500.0,8.579e-05,2]
[422843009,1779511846000,-500.0,8.579e-05,2]
[422843014,1779511846000,-177.75116381,8.579e-05,2]
[422843013,1779511846000,-158.79594749,8.579e-05,2]
[422843008,1779511846000,-500.0,8.579e-05,2]
[422843011,1779511846000,-11.84595749,8.579e-05,2]
[422843061,1779512067000,330.0,8.795e-05,3]
[422843063,1779512296000,200.0,7.978e-05,2]
[422843064,1779512328000,2134.637,0.0002808,120]
[422843065,1779512346000,152.0,9.029e-05,7]
[422843066,1779512347000,152.0,9.029e-05,7]
[422843067,1779512392000,1852.42,7.83e-05,2]
[422843068,1779512410000,152.0,9.031e-05,7]
[422843069,1779512412000,330.0,8.795e-05,3]
[422843070,1779512429000,477.78,7.77e-05,2]
[422843072,1779512571000,380.16,7.696e-05,2]
[422843073,1779512576000,234.5,7.678e-05,2]
[422843074,1779512654000,663.3,0.00028,120]
[422843075,1779512660000,528.0,9.987e-05,5]
[422843076,1779512682000,217.03,3.791e-05,2]
[422843081,1779512683000,217.03,4.789e-05,2]
[422843080,1779512683000,217.03,4.59e-05,2]
[422843079,1779512683000,217.03,4.39e-05,2]
[422843078,1779512683000,217.03,4.191e-05,2]
[422843077,1779512683000,217.03,3.991e-05,2]
[422843085,1779512684000,217.03,5.588e-05,2]
[422843084,1779512684000,217.03,5.388e-05,2]
[422843083,1779512684000,217.03,5.188e-05,2]
[422843082,1779512684000,217.03,4.989e-05,2]
[422843087,1779512685000,217.03,5.987e-05,2]
[422843086,1779512685000,217.03,5.787e-05,2]
[422843089,1779512685000,217.03,6.386e-05,2]
[422843088,1779512685000,217.03,6.186e-05,2]
[422843093,1779512686000,217.03,7.184e-05,2]
[422843092,1779512686000,217.03,6.984e-05,2]
[422843091,1779512686000,217.03,6.785e-05,2]
[422843090,1779512686000,217.03,6.585e-05,2]
[422843094,1779512686000,217.03,7.384e-05,2]
[422843095,1779512687000,217.03,7.583e-05,2]
[422843096,1779512694000,167.19,7.81e-05,2]
[422843098,1779512779000,330.0,8.795e-05,3]
[422843101,1779512794000,4277.02568111,7.583e-05,2]
[422843099,1779512794000,937.25561682,7.583e-05,2]
[422843100,1779512794000,4277.02568111,7.583e-05,2]
[422843102,1779512848000,508.67,7.482e-05,2]
[422843104,1779512890000,1897.19,7.407e-05,2]
[422843105,1779512902000,545.47,7.407e-05,2]
[422843108,1779512914000,2304.32863778,7.407e-05,2]
[422843106,1779512914000,1325.69568111,7.407e-05,2]
[422843107,1779512914000,4277.02568111,7.407e-05,2]
[422843109,1779512941000,1000.0,0.00028079,120]
[422843110,1779512960000,500.0,7.374e-05,2]
[422843115,1779512966000,330.0,8.795e-05,3]
[422843143,1779513032000,-250.0,8.12e-05,2]
[422843154,1779513032000,-167.0,8.34e-05,2]
[422843156,1779513032000,-300.0,8.34e-05,2]
[422843158,1779513032000,-1680.0,8.34e-05,2]
[422843149,1779513032000,-898.26,8.219e-05,2]
[422843147,1779513032000,-163.0,8.188e-05,2]
[422843151,1779513032000,-166.41,8.219e-05,2]
[422843152,1779513032000,-163.0,8.264e-05,2]
[422843150,1779513032000,-2000.0,8.219e-05,2]
[422843162,1779513032000,-191.53533937,8.34e-05,2]
[422843161,1779513032000,-250.0,8.34e-05,2]
[422843175,1779513032000,-430.04872724,8.363e-05,2]
[422843178,1779513032000,-500.0,8.373e-05,2]
[422843164,1779513032000,-230.38062833,8.341e-05,2]
[422843185,1779513032000,-150.0,8.422e-05,2]
[422843168,1779513032000,-193.0,8.341e-05,2]
[422843171,1779513032000,-13571.0,8.361e-05,2]
[422843187,1779513032000,-5081.0,8.423e-05,2]
[422843145,1779513032000,-7615.56399536,8.168e-05,2]
[422843160,1779513032000,-420.0,8.34e-05,2]
[422843141,1779513032000,-163.0,8.113e-05,2]
[422843121,1779513032000,-300.0,7.582e-05,2]
[422843139,1779513032000,-163.0,8.037e-05,2]
[422843120,1779513032000,-300.0,7.582e-05,2]
[422843123,1779513032000,-300.0,7.582e-05,2]
[422843124,1779513032000,-1207.16045395,7.582e-05,2]
[422843190,1779513032000,-3675.69,8.44e-05,2]
[422843122,1779513032000,-1200.0,7.582e-05,2]
[422843125,1779513032000,-1488.70773973,7.582e-05,2]
[422843127,1779513032000,-500.91157275,7.582e-05,2]
[422843126,1779513032000,-3636.70979748,7.582e-05,2]
[422843129,1779513032000,-462.19315992,7.582e-05,2]
[422843128,1779513032000,-308.93914437,7.582e-05,2]
[422843130,1779513032000,-2410.69301395,7.582e-05,2]
[422843131,1779513032000,-10513.63302096,7.583e-05,2]
[422843135,1779513032000,-163.0,7.809e-05,2]
[422843136,1779513032000,-220.37,7.848e-05,2]
[422843132,1779513032000,-195.7224227,7.62e-05,2]
[422843134,1779513032000,-163.0,7.734e-05,2]
[422843133,1779513032000,-163.0,7.658e-05,2]
[422843137,1779513032000,-163.0,7.885e-05,2]
[422843138,1779513032000,-163.0,7.961e-05,2]
[422843140,1779513032000,-6382.04,8.11e-05,2]
[422843192,1779513032000,-5229.0,8.44e-05,2]
[422843182,1779513032000,-158.25,8.415e-05,2]
[422843196,1779513032000,-19987.078,8.48e-05,2]
[422843229,1779513032000,-500.0,8.579e-05,2]
[422843228,1779513032000,-500.0,8.579e-05,2]
[422843230,1779513032000,-500.0,8.579e-05,2]
[422843233,1779513032000,-500.0,8.579e-05,2]
[422843234,1779513032000,-500.0,8.579e-05,2]
[422843232,1779513032000,-500.0,8.579e-05,2]
[422843231,1779513032000,-287.55572158,8.579e-05,2]
[422843236,1779513032000,-500.0,8.579e-05,2]
[422843239,1779513032000,-500.0,8.579e-05,2]
[422843227,1779513032000,-500.0,8.579e-05,2]
[422843235,1779513032000,-500.0,8.579e-05,2]
[422843237,1779513032000,-500.0,8.579e-05,2]
[422843240,1779513032000,-500.0,8.579e-05,2]
[422843241,1779513032000,-500.0,8.579e-05,2]
[422843243,1779513032000,-300.0,8.579e-05,2]
[422843242,1779513032000,-500.0,8.579e-05,2]
[422843244,1779513032000,-500.0,8.579e-05,2]
[422843247,1779513032000,-32492.99686189,8.58e-05,2]
[422843245,1779513032000,-449.02203799,8.579e-05,2]
[422843246,1779513032000,-33205.6659,8.58e-05,2]
[422843238,1779513032000,-500.0,8.579e-05,2]
[422843194,1779513032000,-3303.22775504,8.479e-05,2]
[422843223,1779513032000,-500.0,8.579e-05,2]
[422843221,1779513032000,-500.0,8.579e-05,2]
[422843207,1779513032000,-176.342,8.578e-05,2]
[422843212,1779513032000,-500.0,8.579e-05,2]
[422843209,1779513032000,-500.0,8.579e-05,2]
[422843211,1779513032000,-362.56595839,8.579e-05,2]
[422843213,1779513032000,-500.0,8.579e-05,2]
[422843205,1779513032000,-1643.503,8.578e-05,2]
[422843248,1779513032000,-16212.17423093,8.58e-05,2]
[422843200,1779513032000,-485.11,8.548e-05,2]
[422843198,1779513032000,-500.0,8.521e-05,2]
[422843224,1779513032000,-500.0,8.579e-05,2]
[422843202,1779513032000,-151.0,8.577e-05,2]
[422843216,1779513032000,-500.0,8.579e-05,2]
[422843215,1779513032000,-500.0,8.579e-05,2]
[422843218,1779513032000,-500.0,8.579e-05,2]
[422843217,1779513032000,-500.0,8.579e-05,2]
[422843219,1779513032000,-500.0,8.579e-05,2]
[422843220,1779513032000,-500.0,8.579e-05,2]
[422843222,1779513032000,-500.0,8.579e-05,2]
[422843225,1779513032000,-500.0,8.579e-05,2]
[422843226,1779513032000,-500.0,8.579e-05,2]
[422843214,1779513032000,-500.0,8.579e-05,2]
[422843250,1779513033000,-824.12062369,8.58e-05,2]
[422843249,1779513033000,-637.20601894,8.58e-05,2]
[422843252,1779513033000,-14382.54366993,8.58e-05,2]
[422843251,1779513033000,-699.49483532,8.58e-05,2]
[422843256,1779513038000,-500.43614241,8.58e-05,2]
[422843257,1779513038000,-2583.5208718,8.58e-05,2]
[422843255,1779513038000,-18644.18065624,8.58e-05,2]
[422843254,1779513038000,-903.93718342,8.58e-05,2]
[422843261,1779513040000,-377.7448,8.58e-05,2]
[422843268,1779513043000,-421.41945773,8.58e-05,2]
[422843267,1779513043000,-629.86912729,8.58e-05,2]
[422843266,1779513043000,-563.34989413,8.58e-05,2]
[422843285,1779513046000,-778.8551037,8.58e-05,2]
[422843286,1779513046000,-577.09443144,8.58e-05,2]
[422843288,1779513047000,-338.89006486,8.58e-05,2]
[422843287,1779513047000,-1199.92,8.58e-05,2]
[422843362,1779513149000,330.0,8.575e-05,3]
[422843363,1779513318000,500.0,0.00028082,120]
[422843369,1779513455000,207.81,4.617e-05,2]
[422843368,1779513455000,207.81,4.416e-05,2]
[422843367,1779513455000,207.81,4.216e-05,2]
[422843366,1779513455000,207.81,4.015e-05,2]
[422843365,1779513455000,207.81,3.814e-05,2]
[422843371,1779513456000,207.81,5.018e-05,2]
[422843370,1779513456000,207.81,4.818e-05,2]
[422843373,1779513456000,189.78295667,5.219e-05,2]
[422843374,1779513456000,207.81,5.42e-05,2]
[422843372,1779513456000,18.02704333,5.219e-05,2]
[422843378,1779513457000,207.81,6.223e-05,2]
[422843377,1779513457000,207.81,6.022e-05,2]
[422843376,1779513457000,207.81,5.821e-05,2]
[422843375,1779513457000,207.81,5.621e-05,2]
[422843383,1779513458000,207.81,7.227e-05,2]
[422843382,1779513458000,207.81,7.026e-05,2]
[422843381,1779513458000,207.81,6.825e-05,2]
[422843380,1779513458000,207.81,6.624e-05,2]
[422843379,1779513458000,207.81,6.424e-05,2]
[422843384,1779513459000,207.81,7.427e-05,2]
[422843385,1779513514000,330.0,8.575e-05,3]
[422843388,1779513604000,404.79727556,7.473e-05,2]
[422843387,1779513604000,1801.33272444,7.473e-05,2]
[422843389,1779513633000,8000.0,0.00027945,120]
[422843397,1779513676000,-175.58,7.595e-05,2]
[422843396,1779513676000,-175.58,7.595e-05,2]
[422843395,1779513676000,-175.58,7.595e-05,2]
[422843394,1779513676000,-175.58,7.595e-05,2]
[422843393,1779513676000,-175.58,7.595e-05,2]
[422843392,1779513676000,-175.58,7.595e-05,2]
[422843391,1779513676000,-151.0,7.595e-05,2]
[422843399,1779513677000,-175.58,7.595e-05,2]
[422843400,1779513677000,-367.35,7.595e-05,2]
[422843398,1779513677000,-175.58,7.595e-05,2]
[422843402,1779513677000,-150.04,7.595e-05,2]
[422843401,1779513677000,-150.04,7.595e-05,2]
[422843403,1779513677000,-64.97,7.595e-05,2]
[422843404,1779513707000,500.0,0.0002763,120]
[422843407,1779513856000,150.04,7.405e-05,2]
[422843408,1779513856000,114.85,7.405e-05,2]
[422843406,1779513856000,150.04,7.405e-05,2]
[422843405,1779513856000,85.07,7.405e-05,2]
[422843409,1779513882000,330.0,8.575e-05,3]
[422843410,1779513940000,200.0,7.309e-05,2]
[422843411,1779513978000,494.33,7.235e-05,2]
[422843412,1779513982000,500.0,7.235e-05,2]
[422843420,1779514010000,150.04,7.198e-05,2]
[422843422,1779514010000,15.202375,7.198e-05,2]
[422843419,1779514010000,150.04,7.198e-05,2]
[422843418,1779514010000,167.46,7.198e-05,2]
[422843417,1779514010000,167.46,7.198e-05,2]
[422843416,1779514010000,167.46,7.198e-05,2]
[422843415,1779514010000,167.46,7.198e-05,2]
[422843414,1779514010000,167.46,7.198e-05,2]
[422843413,1779514010000,549.797625,7.198e-05,2]
[422843421,1779514010000,150.04,7.198e-05,2]
[422843434,1779514140000,1000.0,0.00028081,120]
[422843521,1779514194000,150.04,7.25e-05,2]
[422843520,1779514194000,134.837625,7.25e-05,2]
[422843522,1779514194000,150.04,7.25e-05,2]
[422843523,1779514195000,1507.762375,7.25e-05,2]
[422843524,1779514202000,1383.07,7.271e-05,2]
[422843556,1779514232000,-26148.44260255,8.204e-05,2]
[422843548,1779514232000,-300.0,8.049e-05,2]
[422843543,1779514232000,-152.0,8.008e-05,2]
[422843542,1779514232000,-152.0,7.932e-05,2]
[422843540,1779514232000,-152.0,7.856e-05,2]
[422843537,1779514232000,-152.0,7.703e-05,2]
[422843539,1779514232000,-663.59,7.828e-05,2]
[422843541,1779514232000,-196.52,7.869e-05,2]
[422843536,1779514232000,-207.81,7.628e-05,2]
[422843535,1779514232000,-160.47,7.628e-05,2]
[422843546,1779514232000,-1200.0,8.049e-05,2]
[422843544,1779514232000,-2381.0,8.01e-05,2]
[422843545,1779514232000,-10195.0,8.037e-05,2]
[422843534,1779514232000,-250.0,7.62e-05,2]
[422843538,1779514232000,-152.0,7.78e-05,2]
[422843547,1779514232000,-300.0,8.049e-05,2]
[422843557,1779514232000,-7235.50302874,8.204e-05,2]
[422843555,1779514232000,-132517.18532701,8.204e-05,2]
[422843552,1779514232000,-519.8669,8.121e-05,2]
[422843568,1779514232000,-437.436765,8.221e-05,2]
[422843560,1779514232000,-1000.0,8.22e-05,2]
[422843563,1779514232000,-906.42945608,8.221e-05,2]
[422843567,1779514232000,-18558.18293599,8.221e-05,2]
[422843562,1779514232000,-62454.61721203,8.221e-05,2]
[422843561,1779514232000,-13943.02512934,8.221e-05,2]
[422843558,1779514232000,-173.22,8.219e-05,2]
[422843566,1779514232000,-260.03248731,8.221e-05,2]
[422843564,1779514232000,-450.71712781,8.221e-05,2]
[422843559,1779514232000,-1716.18,8.219e-05,2]
[422843551,1779514232000,-152.0,8.085e-05,2]
[422843554,1779514232000,-150.0,8.203e-05,2]
[422843550,1779514232000,-1201.04505097,8.058e-05,2]
[422843549,1779514232000,-1200.0,8.049e-05,2]
[422843565,1779514232000,-8420.20331306,8.221e-05,2]
[422843553,1779514232000,-152.0,8.161e-05,2]
[422843581,1779514238000,-250.0,8.382e-05,2]
[422843579,1779514238000,-250.0,8.367e-05,2]
[422843578,1779514238000,-152.0,8.313e-05,2]
[422843575,1779514238000,-22409.98481757,8.221e-05,2]
[422843577,1779514238000,-152.0,8.237e-05,2]
[422843585,1779514238000,-154.23803141,8.577e-05,2]
[422843582,1779514238000,-157.0,8.39e-05,2]
[422843584,1779514238000,-665.00385028,8.574e-05,2]
[422843583,1779514238000,-2000.0,8.559e-05,2]
[422843576,1779514238000,-3127.1850198,8.221e-05,2]
[422843574,1779514238000,-1407.13607521,8.221e-05,2]
[422843580,1779514238000,-250.0,8.373e-05,2]
[422843586,1779514238000,-485.47662152,8.579e-05,2]
[422843587,1779514238000,-1872.07836152,8.579e-05,2]
[422843602,1779514238000,-500.0,8.777e-05,2]
[422843592,1779514238000,-170.55243583,8.622e-05,2]
[422843589,1779514238000,-3091.6553981,8.58e-05,2]
[422843591,1779514238000,-276.0,8.603e-05,2]
[422843594,1779514238000,-151.0,8.663e-05,2]
[422843588,1779514238000,-910.78222874,8.579e-05,2]
[422843596,1779514238000,-12162.5233,8.677e-05,2]
[422843593,1779514238000,-380.16,8.658e-05,2]
[422843599,1779514238000,-2500.0,8.764e-05,2]
[422843600,1779514238000,-1906.24,8.776e-05,2]
[422843605,1779514238000,-420.0,8.854e-05,2]
[422843607,1779514238000,-4885.71402235,8.864e-05,2]
[422843604,1779514238000,-663.59,8.806e-05,2]
[422843606,1779514238000,-1680.0,8.854e-05,2]
[422843590,1779514238000,-9592.7585275,8.58e-05,2]
[422844042,1779514243000,-541.15284276,8.864e-05,2]
[422844044,1779514243000,-442.21185086,8.864e-05,2]
[422844043,1779514243000,-274.06078536,8.864e-05,2]
[422844045,1779514246000,330.0,8.877e-05,3]
[422844050,1779514247000,-299.99,8.864e-05,2]
[422844049,1779514247000,-54.56927062,8.864e-05,2]
[422844047,1779514247000,-3856.85049867,8.864e-05,2]
[422844048,1779514247000,-96.42072938,8.864e-05,2]
[422844051,1779514247000,-3153.9724432,8.864e-05,2]
[422844054,1779514248000,4000.0,0.0001,5]
[422844058,1779514530000,377.60396945,5.187e-05,2]
[422844057,1779514530000,75.39603055,5.187e-05,2]
[422844056,1779514530000,453.0,4.94e-05,2]
[422844055,1779514530000,453.0,4.693e-05,2]
[422844059,1779514531000,453.0,5.434e-05,2]
[422844060,1779514531000,453.0,5.681e-05,2]
[422844063,1779514531000,453.0,6.422e-05,2]
[422844064,1779514531000,453.0,6.669e-05,2]
[422844062,1779514531000,453.0,6.175e-05,2]
[422844061,1779514531000,453.0,5.928e-05,2]
[422844067,1779514532000,275.42171166,7.41e-05,2]
[422844068,1779514532000,177.57828834,7.41e-05,2]
[422844066,1779514532000,453.0,7.163e-05,2]
[422844065,1779514532000,453.0,6.916e-05,2]
[422844070,1779514606000,330.0,8.877e-05,3]
[422844074,1779514764000,330.0,8.877e-05,3]
[422844080,1779514968000,330.0,8.877e-05,3]
[422844081,1779515083000,599.0,9.569e-05,5]
[422844085,1779515197000,-152.0,0.00011,12]
[422844084,1779515197000,-152.0,0.00010606,11]
[422844086,1779515222000,151.38322112,9.138e-05,7]
[422844087,1779515263000,260.88701121,9.8e-05,5]
[422844088,1779515328000,330.0,8.877e-05,3]
[422844089,1779515340000,1000.0,0.0002808,120]
[422844190,1779515420000,169.65,5.449e-05,2]
[422844189,1779515420000,169.65,4.67e-05,2]
[422844188,1779515420000,169.65,3.892e-05,2]
[422844192,1779515421000,169.65,7.005e-05,2]
[422844191,1779515421000,169.65,6.227e-05,2]
[422844221,1779515431000,-315.44579433,8.221e-05,2]
[422844219,1779515431000,-2000.0,8.219e-05,2]
[422844223,1779515431000,-577.61138007,8.221e-05,2]
[422844210,1779515431000,-453.0,8.151e-05,2]
[422844209,1779515431000,-304.06,8.126e-05,2]
[422844208,1779515431000,-1852.42,8.107e-05,2]
[422844203,1779515431000,-366.16,7.969e-05,2]
[422844206,1779515431000,-200.0,8.071e-05,2]
[422844205,1779515431000,-274.17,8.043e-05,2]
[422844207,1779515431000,-362.919,8.104e-05,2]
[422844204,1779515431000,-269.13,8e-05,2]
[422844211,1779515431000,-1390.0,8.212e-05,2]
[422844201,1779515431000,-453.0,7.904e-05,2]
[422844200,1779515431000,-398.15,7.823e-05,2]
[422844199,1779515431000,-622.68956305,7.791e-05,2]
[422844198,1779515431000,-41.00042129,7.784e-05,2]
[422844196,1779515431000,-250.0,7.688e-05,2]
[422844197,1779515431000,-128.64957871,7.784e-05,2]
[422844195,1779515431000,-453.0,7.657e-05,2]
[422844202,1779515431000,-231.34,7.931e-05,2]
[422844215,1779515431000,-166.41,8.219e-05,2]
[422844233,1779515431000,-27711.1041571,8.451e-05,2]
[422844213,1779515431000,-300.0,8.218e-05,2]
[422844245,1779515431000,-311.0,9.151e-05,2]
[422844242,1779515431000,-359.15755289,9.048e-05,2]
[422844244,1779515431000,-453.0,9.139e-05,2]
[422844243,1779515431000,-167.19,9.1e-05,2]
[422844236,1779515431000,-453.0,8.645e-05,2]
[422844226,1779515431000,-453.0,8.398e-05,2]
[422844239,1779515431000,-453.0,8.892e-05,2]
[422844240,1779515431000,-1680.0,9.039e-05,2]
[422844235,1779515431000,-500.0,8.548e-05,2]
[422844237,1779515431000,-500.0,8.795e-05,2]
[422844241,1779515431000,-420.0,9.04e-05,2]
[422844232,1779515431000,-2771.9535298,8.451e-05,2]
[422844230,1779515431000,-250.0,8.422e-05,2]
[422844231,1779515431000,-150.0,8.45e-05,2]
[422844228,1779515431000,-250.0,8.422e-05,2]
[422844212,1779515431000,-1200.0,8.217e-05,2]
[422844222,1779515431000,-770.7589289,8.221e-05,2]
[422844217,1779515431000,-858.09,8.219e-05,2]
[422844225,1779515431000,-500.0,8.384e-05,2]
[422844238,1779515431000,-398.15,8.801e-05,2]
[422844249,1779515432000,-453.0,9.386e-05,2]
[422844250,1779515432000,-163.31,9.39e-05,2]
[422844247,1779515432000,-255.0,9.295e-05,2]
[422844254,1779515432000,-500.0,9.522e-05,2]
[422844248,1779515432000,-1000.0,9.325e-05,2]
[422844253,1779515432000,-228.09,9.464e-05,2]
[422844252,1779515432000,-2500.0,9.423e-05,2]
[422844246,1779515432000,-2000.0,9.247e-05,2]
[422844255,1779515432000,-500.0,9.522e-05,2]
[422844251,1779515432000,-689.18503914,9.417e-05,2]
[422844265,1779515432000,-12648.37400427,9.523e-05,2]
[422844263,1779515432000,-99.96881721,9.522e-05,2]
[422844266,1779515432000,-10325.11803028,9.523e-05,2]
[422844260,1779515432000,-500.0,9.522e-05,2]
[422844257,1779515432000,-258.75557216,9.522e-05,2]
[422844262,1779515432000,-500.0,9.522e-05,2]
[422844261,1779515432000,-500.0,9.522e-05,2]
[422844258,1779515432000,-500.0,9.522e-05,2]
[422844256,1779515432000,-500.0,9.522e-05,2]
[422844259,1779515432000,-500.0,9.522e-05,2]
[422844264,1779515432000,-275.73726164,9.522e-05,2]
[422844267,1779515437000,-500.0,9.417e-05,2]
[422844268,1779515437000,-1541.44350403,9.523e-05,2]